[Event "NJSK 2022 Jeugd A"]
[Site "Almelo, Netherlands"]
[Date "2022.05.04"]
[Round "4.5"]
[White "Van Dam, Thijs"]
[Black "Maters, Arthur"]
[Result "1/2-1/2"]
[TimeControl "90min/40moves + 30min + 30sec/move"]
[WhiteElo "1903"]
[BlackElo "2048"]

1. d4 {[%clk 01:30:55]} {[%emt 00:00:05]} d5 {[%clk 01:30:57]} {[%emt
00:00:04]} 2. c4 {[%clk 01:31:10]} {[%emt 00:00:15]} e6 {[%clk 01:31:19]}
{[%emt 00:00:08]} 3. Nc3 {[%clk 01:31:32]} {[%emt 00:00:07]} Nf6 {[%clk
01:31:42]} {[%emt 00:00:08]} 4. cxd5 {[%clk 01:31:56]} {[%emt 00:00:06]} exd5
{[%clk 01:32:08]} {[%emt 00:00:04]} 5. Bg5 {[%clk 01:32:20]} {[%emt 00:00:05]}
c6 {[%clk 01:32:33]} {[%emt 00:00:06]} 6. e3 {[%clk 01:32:45]} {[%emt
00:00:05]} Bd6 {[%clk 01:32:57]} {[%emt 00:00:06]} 7. Bd3 {[%clk 01:33:09]}
{[%emt 00:00:06]} h6 {[%clk 01:33:07]} {[%emt 00:00:21]} 8. Bh4 {[%clk
01:33:16]} {[%emt 00:00:22]} O-O {[%clk 01:33:31]} {[%emt 00:00:06]} 9. Qc2
{[%clk 01:32:41]} {[%emt 00:01:04]} Re8 {[%clk 01:33:54]} {[%emt 00:00:08]} 10.
Nge2 {[%clk 01:32:19]} {[%emt 00:00:52]} a5 {[%clk 01:34:17]} {[%emt 00:00:07]}
11. h3 {[%clk 01:32:07]} {[%emt 00:00:41]} Na6 {[%clk 01:34:35]} {[%emt
00:00:13]} 12. a3 {[%clk 01:32:32]} {[%emt 00:00:06]} Nc7 {[%clk 01:34:49]}
{[%emt 00:00:15]} 13. Bg3 {[%clk 01:31:31]} {[%emt 00:01:30]} Ne6 {[%clk
01:30:52]} {[%emt 00:04:27]} 14. O-O {[%clk 01:30:57]} {[%emt 00:01:04]} Ng5
{[%clk 01:27:58]} {[%emt 00:03:25]} 15. Bxd6 {[%clk 01:15:24]} {[%emt
00:16:03]} Qxd6 {[%clk 01:28:20]} {[%emt 00:00:09]} 16. Ng3 {[%clk 01:08:35]}
{[%emt 00:07:17]} Rxe3 {[%clk 01:19:30]} {[%emt 00:09:21]} 17. fxe3 {[%clk
01:05:49]} {[%emt 00:03:16]} Qxg3 {[%clk 01:19:48]} {[%emt 00:00:12]} 18. Bf5
{[%clk 01:03:49]} {[%emt 00:02:30]} Bxf5 {[%clk 01:13:48]} {[%emt 00:06:31]} 19.
Qxf5 {[%clk 01:03:56]} {[%emt 00:00:22]} Qxe3+ {[%clk 01:14:14]} {[%emt
00:00:04]} 20. Qf2 {[%clk 01:03:51]} {[%emt 00:00:35]} Qxf2+ {[%clk 01:14:18]}
{[%emt 00:00:26]} 21. Rxf2 {[%clk 01:03:45]} {[%emt 00:00:36]} Nge4 {[%clk
01:14:41]} {[%emt 00:00:06]} 22. Nxe4 {[%clk 01:03:03]} {[%emt 00:01:13]} Nxe4
{[%clk 00:59:58]} {[%emt 00:15:12]} 23. Rf3 {[%clk 01:01:46]} {[%emt 00:01:47]}
h5 {[%clk 00:55:31]} {[%emt 00:04:58]} 24. Rb3 {[%clk 00:58:45]} {[%emt
00:03:31]} Nd2 {[%clk 00:50:21]} {[%emt 00:05:40]} 25. Rxb7 {[%clk 00:58:24]}
{[%emt 00:00:49]} Rc8 {[%clk 00:48:11]} {[%emt 00:02:41]} 26. Re1 {[%clk
00:53:53]} {[%emt 00:05:01]} Ne4 {[%clk 00:47:38]} {[%emt 00:01:04]} 27. Ra7
{[%clk 00:53:22]} {[%emt 00:01:01]} Rb8 {[%clk 00:47:20]} {[%emt 00:00:48]} 28.
Re2 {[%clk 00:53:36]} {[%emt 00:00:15]} Rb5 {[%clk 00:47:34]} {[%emt 00:00:17]}
29. Rc2 {[%clk 00:53:04]} {[%emt 00:01:02]} h4 {[%clk 00:44:16]} {[%emt
00:03:48]} 30. Ra6 {[%clk 00:52:48]} {[%emt 00:00:45]} c5 {[%clk 00:44:41]}
{[%emt 00:00:06]} 31. dxc5 {[%clk 00:53:04]} {[%emt 00:00:14]} Nxc5 {[%clk
00:44:50]} {[%emt 00:00:22]} 32. Ra8+ {[%clk 00:53:21]} {[%emt 00:00:12]} Kh7
{[%clk 00:45:12]} {[%emt 00:00:08]} 33. Rd8 {[%clk 00:50:48]} {[%emt 00:03:03]}
Ne6 {[%clk 00:40:01]} {[%emt 00:05:41]} 34. a4 {[%clk 00:50:03]} {[%emt
00:01:14]} Rb4 {[%clk 00:40:18]} {[%emt 00:00:14]} 35. Rxd5 {[%clk 00:50:18]}
{[%emt 00:00:15]} Rxa4 {[%clk 00:40:44]} {[%emt 00:00:04]} 36. b3 {[%clk
00:46:45]} {[%emt 00:04:03]} Ra1+ {[%clk 00:40:02]} {[%emt 00:01:12]} 37. Kf2
{[%clk 00:46:57]} {[%emt 00:00:18]} a4 {[%clk 00:39:08]} {[%emt 00:01:24]} 38.
Ra5 {[%clk 00:40:47]} {[%emt 00:06:39]} axb3 {[%clk 00:36:46]} {[%emt
00:02:53]} 39. Rxa1 {[%clk 00:41:03]} {[%emt 00:00:14]} bxc2 {[%clk 00:37:14]}
{[%emt 00:00:02]} 40. Rc1 {[%clk 00:40:48]} {[%emt 00:00:45]} g5 {[%clk
00:37:34]} {[%emt 00:00:09]} 41. Rxc2 {[%clk 00:40:55]} {[%emt 00:00:23]} Kg6
{[%clk 00:37:58]} {[%emt 00:00:06]} 42. Ra2 {[%clk 00:41:03]} {[%emt 00:00:23]}
Nf4 {[%clk 00:36:30]} {[%emt 00:01:58]} 43. Kf3 {[%clk 00:41:12]} {[%emt
00:00:19]} Kf5 {[%clk 00:35:39]} {[%emt 00:01:22]} 44. Ra5+ {[%clk 00:41:03]}
{[%emt 00:00:40]} Kg6 {[%clk 00:35:40]} {[%emt 00:00:29]} 45. Rb5 {[%clk
00:40:59]} {[%emt 00:00:34]} f6 {[%clk 00:35:38]} {[%emt 00:00:32]} 46. Rb8
{[%clk 00:41:06]} {[%emt 00:00:22]} Kf5 {[%clk 00:35:43]} {[%emt 00:00:26]} 47.
Rb5+ {[%clk 00:41:17]} {[%emt 00:00:18]} Kg6 {[%clk 00:36:02]} {[%emt
00:00:11]} 48. Ra5 {[%clk 00:41:37]} {[%emt 00:00:10]} Nh5 {[%clk 00:34:48]}
{[%emt 00:01:45]} 49. Ra4 {[%clk 00:41:30]} {[%emt 00:00:36]} Ng7 {[%clk
00:35:00]} {[%emt 00:00:18]} 50. Ke4 {[%clk 00:40:38]} {[%emt 00:01:23]} Nh5
{[%clk 00:35:05]} {[%emt 00:00:24]} 51. Kf3 {[%clk 00:40:00]} {[%emt 00:01:08]}
Ng7 {[%clk 00:35:29]} {[%emt 00:00:06]} 52. Ke4 {[%emt 00:00:25]} 1/2-1/2

[Event "NJSK 2022 Jeugd A"]
[Site "Almelo, Netherlands"]
[Date "2022.05.04"]
[Round "4.6"]
[White "Hooijmans, Max"]
[Black "Bakker, Tycho"]
[Result "1/2-1/2"]
[TimeControl "90min/40moves + 30min + 30sec/move"]
[WhiteElo "1420"]
[BlackElo "1857"]

1. e4 {[%clk 01:30:58]} {[%emt 00:00:01]} e5 {[%clk 01:30:51]} {[%emt
00:00:09]} 2. Nf3 {[%clk 01:31:22]} {[%emt 00:00:06]} Nc6 {[%clk 01:31:18]}
{[%emt 00:00:03]} 3. Bc4 {[%clk 01:31:44]} {[%emt 00:00:08]} Nf6 {[%clk
01:31:43]} {[%emt 00:00:05]} 4. Nc3 {[%clk 01:31:55]} {[%emt 00:00:19]} Nxe4
{[%clk 01:32:06]} {[%emt 00:00:08]} 5. Bxf7+ {[%clk 01:32:05]} {[%emt
00:00:19]} Kxf7 {[%clk 01:32:29]} {[%emt 00:00:07]} 6. Nxe4 {[%clk 01:32:31]}
{[%emt 00:00:04]} d5 {[%clk 01:32:53]} {[%emt 00:00:06]} 7. Ng3 {[%clk
01:32:29]} {[%emt 00:00:32]} e4 {[%clk 01:32:11]} {[%emt 00:01:12]} 8. Ng1
{[%clk 01:32:49]} {[%emt 00:00:10]} Bc5 {[%clk 01:31:26]} {[%emt 00:01:15]} 9.
d3 {[%clk 01:28:32]} {[%emt 00:04:48]} Qf6 {[%clk 01:09:51]} {[%emt 00:22:05]}
10. Be3 {[%clk 01:10:11]} {[%emt 00:18:51]} Bxe3 {[%clk 01:09:45]} {[%emt
00:00:35]} 11. fxe3 {[%clk 01:09:47]} {[%emt 00:00:55]} exd3 {[%clk 01:10:12]}
{[%emt 00:00:03]} 12. cxd3 {[%clk 01:06:23]} {[%emt 00:03:53]} Qxb2 {[%clk
01:04:17]} {[%emt 00:06:22]} 13. N1e2 {[%clk 00:58:57]} {[%emt 00:08:00]} Qb4+
{[%clk 01:04:18]} {[%emt 00:00:27]} 14. Qd2 {[%clk 00:57:35]} {[%emt 00:01:53]}
Qxd2+ {[%clk 00:54:10]} {[%emt 00:10:38]} 15. Kxd2 {[%clk 00:58:03]} {[%emt
00:00:03]} Ne5 {[%clk 00:54:24]} {[%emt 00:00:16]} 16. Rhf1+ {[%clk 00:49:43]}
{[%emt 00:08:49]} Ke7 {[%clk 00:54:21]} {[%emt 00:00:33]} 17. Nf5+ {[%clk
00:46:12]} {[%emt 00:04:01]} Bxf5 {[%clk 00:54:45]} {[%emt 00:00:06]} 18. Rxf5
{[%clk 00:46:35]} {[%emt 00:00:07]} Kd6 {[%clk 00:55:13]} {[%emt 00:00:02]} 19.
Raf1 {[%clk 00:45:12]} {[%emt 00:01:52]} Nd7 {[%clk 00:51:37]} {[%emt
00:04:08]} 20. Rf7 {[%clk 00:38:02]} {[%emt 00:07:40]} Rhf8 {[%clk 00:51:53]}
{[%emt 00:00:14]} 21. Nd4 {[%clk 00:36:19]} {[%emt 00:02:12]} Rxf7 {[%clk
00:24:57]} {[%emt 00:27:26]} 22. Rxf7 {[%clk 00:36:40]} {[%emt 00:00:09]} Rf8
{[%clk 00:25:26]} {[%emt 00:00:01]} 23. Rxg7 {[%clk 00:34:42]} {[%emt
00:02:27]} Rf2+ {[%clk 00:15:04]} {[%emt 00:10:52]} 24. Ne2 {[%clk 00:34:25]}
{[%emt 00:00:47]} Ne5 {[%clk 00:15:25]} {[%emt 00:00:09]} 25. h3 {[%clk
00:31:05]} {[%emt 00:03:50]} a5 {[%clk 00:13:23]} {[%emt 00:02:33]} 26. d4
{[%clk 00:28:13]} {[%emt 00:03:22]} Nc4+ {[%clk 00:13:43]} {[%emt 00:00:09]} 27.
Ke1 {[%clk 00:28:21]} {[%emt 00:00:22]} Rf6 {[%clk 00:13:21]} {[%emt 00:00:52]}
28. Rxh7 {[%clk 00:27:53]} {[%emt 00:00:58]} Nxe3 {[%clk 00:13:46]} {[%emt
00:00:05]} 29. g4 {[%clk 00:28:12]} {[%emt 00:00:11]} Rf1+ {[%clk 00:13:32]}
{[%emt 00:00:44]} 30. Kd2 {[%clk 00:28:35]} {[%emt 00:00:07]} Nc4+ {[%clk
00:13:55]} {[%emt 00:00:08]} 31. Kd3 {[%clk 00:27:34]} {[%emt 00:01:31]} Rf3+
{[%clk 00:13:26]} {[%emt 00:00:58]} 32. Kc2 {[%clk 00:27:53]} {[%emt 00:00:11]}
Rf2 {[%clk 00:13:28]} {[%emt 00:00:28]} 33. Kd3 {[%clk 00:25:57]} {[%emt
00:02:26]} Rf3+ {[%clk 00:13:53]} {[%emt 00:00:05]} 1/2-1/2

[Event "NJSK 2022 Jeugd A"]
[Site "Almelo, Netherlands"]
[Date "2022.05.04"]
[Round "4.7"]
[White "Visser, Berend"]
[Black "Boeren, Jurriaan"]
[Result "0-1"]
[TimeControl "90min/40moves + 30min + 30sec/move"]
[WhiteElo "1763"]
[BlackElo "1778"]

1. d4 {[%clk 01:30:58]} {[%emt 00:00:01]} d5 {[%clk 01:30:44]} {[%emt
00:00:16]} 2. c4 {[%clk 01:31:24]} {[%emt 00:00:05]} e6 {[%clk 01:31:11]}
{[%emt 00:00:03]} 3. Nc3 {[%clk 01:31:50]} {[%emt 00:00:03]} c6 {[%clk
01:31:38]} {[%emt 00:00:04]} 4. Nf3 {[%clk 01:32:11]} {[%emt 00:00:09]} dxc4
{[%clk 01:32:03]} {[%emt 00:00:05]} 5. a4 {[%clk 01:32:38]} {[%emt 00:00:03]}
Bb4 {[%clk 01:32:29]} {[%emt 00:00:04]} 6. e3 {[%clk 01:33:04]} {[%emt
00:00:04]} b5 {[%clk 01:32:47]} {[%emt 00:00:12]} 7. Bd2 {[%clk 01:33:24]}
{[%emt 00:00:09]} a5 {[%clk 01:33:12]} {[%emt 00:00:06]} 8. axb5 {[%clk
01:33:47]} {[%emt 00:00:07]} Bxc3 {[%clk 01:33:37]} {[%emt 00:00:05]} 9. Bxc3
{[%clk 01:34:13]} {[%emt 00:00:04]} cxb5 {[%clk 01:34:00]} {[%emt 00:00:07]} 10.
b3 {[%clk 01:34:37]} {[%emt 00:00:06]} Bb7 {[%clk 01:34:25]} {[%emt 00:00:04]}
11. bxc4 {[%clk 01:35:01]} {[%emt 00:00:06]} b4 {[%clk 01:34:49]} {[%emt
00:00:06]} 12. Bb2 {[%clk 01:35:28]} {[%emt 00:00:03]} Nf6 {[%clk 01:35:13]}
{[%emt 00:00:06]} 13. Bd3 {[%clk 01:35:46]} {[%emt 00:00:13]} Nbd7 {[%clk
01:35:38]} {[%emt 00:00:05]} 14. O-O {[%clk 01:33:36]} {[%emt 00:02:40]} O-O
{[%clk 01:35:12]} {[%emt 00:00:56]} 15. Re1 {[%clk 01:33:59]} {[%emt 00:00:07]}
Ne4 {[%clk 01:31:03]} {[%emt 00:04:38]} 16. Nd2 {[%clk 01:27:16]} {[%emt
00:07:13]} Nxd2 {[%clk 01:19:24]} {[%emt 00:12:10]} 17. Qxd2 {[%clk 01:27:30]}
{[%emt 00:00:15]} e5 {[%clk 01:16:30]} {[%emt 00:03:24]} 18. d5 {[%clk
01:13:01]} {[%emt 00:14:59]} Qe7 {[%clk 01:01:59]} {[%emt 00:15:01]} 19. e4
{[%clk 01:07:27]} {[%emt 00:06:04]} Nc5 {[%clk 00:58:50]} {[%emt 00:03:39]} 20.
Bc2 {[%clk 01:05:48]} {[%emt 00:02:10]} Rfb8 {[%clk 00:46:17]} {[%emt
00:13:03]} 21. Qe3 {[%clk 01:03:05]} {[%emt 00:03:12]} a4 {[%clk 00:36:11]}
{[%emt 00:10:36]} 22. Bxe5 {[%clk 00:47:33]} {[%emt 00:16:02]} Qxe5 {[%clk
00:36:28]} {[%emt 00:00:13]} 23. Qxc5 {[%clk 00:47:52]} {[%emt 00:00:11]} Qc3
{[%clk 00:36:18]} {[%emt 00:00:40]} 24. Rac1 {[%clk 00:47:19]} {[%emt
00:01:03]} Rc8 {[%clk 00:31:42]} {[%emt 00:05:06]} 25. Qb6 {[%clk 00:45:20]}
{[%emt 00:02:30]} Qxc4 {[%clk 00:20:01]} {[%emt 00:12:11]} 26. Qxb7 {[%clk
00:44:30]} {[%emt 00:01:20]} Rab8 {[%clk 00:19:54]} {[%emt 00:00:37]} 27. Qa7
{[%clk 00:28:09]} {[%emt 00:16:51]} b3 {[%clk 00:18:33]} {[%emt 00:01:49]} 28.
Qe3 {[%clk 00:26:18]} {[%emt 00:02:21]} b2 {[%clk 00:16:17]} {[%emt 00:02:47]}
29. e5 {[%clk 00:25:46]} {[%emt 00:01:02]} bxc1=Q {[%emt 00:01:14]} 30. Rxc1
{[%clk 00:26:07]} {[%emt 00:00:09]} Qxc2 {[%clk 00:14:05]} {[%emt 00:01:59]} 31.
Rxc2 {[%clk 00:26:17]} {[%emt 00:00:19]} Rb1+ {[%clk 00:14:29]} {[%emt
00:00:05]} 0-1

[Event "NJSK 2022 Jeugd A"]
[Site "Almelo, Netherlands"]
[Date "2022.05.05"]
[Round "5.1"]
[White "Albers, Sasa"]
[Black "Roebers, Eline"]
[Result "1/2-1/2"]
[TimeControl "90min/40moves + 30min + 30sec/move"]
[WhiteElo "2117"]
[BlackElo "2369"]

1. e4 {[%clk 01:30:30]} c5 {[%clk 01:30:56]} {[%emt 00:00:14]} 2. Nf3 {[%clk
01:31:25]} {[%emt 00:00:03]} Nc6 {[%clk 01:31:21]} {[%emt 00:00:04]} 3. Bb5
{[%clk 01:31:50]} {[%emt 00:00:07]} g6 {[%clk 01:31:46]} {[%emt 00:00:04]} 4.
O-O {[%clk 01:32:10]} {[%emt 00:00:09]} Bg7 {[%clk 01:32:15]} {[%emt 00:00:02]}
5. c3 {[%clk 01:32:30]} {[%emt 00:00:10]} e5 {[%clk 01:32:42]} {[%emt
00:00:03]} 6. d3 {[%clk 01:32:53]} {[%emt 00:00:07]} Nge7 {[%clk 01:32:56]}
{[%emt 00:00:17]} 7. Be3 {[%clk 01:33:15]} {[%emt 00:00:07]} d6 {[%clk
01:33:20]} {[%emt 00:00:06]} 8. d4 {[%clk 01:33:41]} {[%emt 00:00:04]} exd4
{[%clk 01:33:41]} {[%emt 00:00:10]} 9. cxd4 {[%clk 01:34:05]} {[%emt 00:00:05]}
O-O {[%clk 01:33:51]} {[%emt 00:00:20]} 10. Nc3 {[%clk 01:34:31]} {[%emt
00:00:04]} Qb6 {[%clk 01:33:59]} {[%emt 00:00:22]} 11. dxc5 {[%clk 01:34:18]}
{[%emt 00:00:43]} dxc5 {[%clk 01:34:22]} {[%emt 00:00:08]} 12. Qd6 {[%clk
01:34:36]} {[%emt 00:00:11]} Nd4 {[%clk 01:34:30]} {[%emt 00:00:23]} 13. Qxe7
{[%clk 01:34:16]} {[%emt 00:00:49]} Bf6 {[%clk 01:34:45]} {[%emt 00:00:16]} 14.
Nd5 {[%clk 01:34:33]} {[%emt 00:00:13]} Nxf3+ {[%clk 01:34:07]} {[%emt
00:01:08]} 15. gxf3 {[%clk 01:34:56]} {[%emt 00:00:07]} Bxe7 {[%clk 01:34:35]}
{[%emt 00:00:02]} 16. Nxb6 {[%clk 01:35:16]} {[%emt 00:00:09]} axb6 {[%clk
01:35:02]} {[%emt 00:00:03]} 17. Rfd1 {[%clk 01:35:28]} {[%emt 00:00:18]} Be6
{[%clk 01:32:36]} {[%emt 00:02:57]} 18. a3 {[%clk 01:35:11]} {[%emt 00:00:46]}
Bf6 {[%clk 01:28:45]} {[%emt 00:04:20]} 19. Rd2 {[%clk 01:32:31]} {[%emt
00:03:10]} Rfd8 {[%clk 01:29:02]} {[%emt 00:00:14]} 20. Rad1 {[%clk 01:30:57]}
{[%emt 00:02:03]} Rxd2 {[%clk 01:28:17]} {[%emt 00:01:16]} 21. Rxd2 {[%clk
01:31:17]} {[%emt 00:00:10]} Rd8 {[%clk 01:28:37]} {[%emt 00:00:09]} 22. Rxd8+
{[%clk 01:30:42]} {[%emt 00:01:05]} Bxd8 {[%clk 01:29:04]} {[%emt 00:00:04]} 23.
f4 {[%clk 01:28:57]} {[%emt 00:02:14]} Bf6 {[%clk 01:08:00]} {[%emt 00:21:34]}
24. e5 {[%clk 01:28:47]} {[%emt 00:00:41]} Bd8 {[%clk 01:05:33]} {[%emt
00:02:57]} 25. Kf1 {[%clk 01:18:02]} {[%emt 00:11:14]} f6 {[%clk 01:03:18]}
{[%emt 00:02:46]} 26. Ke2 {[%clk 01:14:10]} {[%emt 00:04:22]} Bc7 {[%clk
00:58:50]} {[%emt 00:04:58]} 27. exf6 {[%clk 01:13:28]} {[%emt 00:01:11]} Kf7
{[%clk 00:58:34]} {[%emt 00:00:47]} 28. Bd3 {[%clk 00:57:22]} {[%emt 00:16:36]}
Bd5 {[%clk 00:41:42]} {[%emt 00:17:22]} 29. f3 {[%clk 00:57:38]} {[%emt
00:00:14]} Kxf6 {[%clk 00:35:01]} {[%emt 00:07:11]} 30. Be4 {[%clk 00:57:59]}
{[%emt 00:00:09]} Bc6 {[%clk 00:32:15]} {[%emt 00:03:16]} 31. Kd3 {[%clk
00:58:02]} {[%emt 00:00:27]} Ke6 {[%clk 00:30:26]} {[%emt 00:02:19]} 32. b4
{[%clk 00:50:10]} {[%emt 00:08:22]} cxb4 {[%clk 00:10:03]} {[%emt 00:20:54]} 33.
axb4 {[%clk 00:50:29]} {[%emt 00:00:10]} Bd6 {[%clk 00:10:17]} {[%emt
00:00:16]} 34. Kc3 {[%clk 00:50:24]} {[%emt 00:00:34]} b5 {[%clk 00:05:36]}
{[%emt 00:05:12]} 35. Bd2 {[%clk 00:50:15]} {[%emt 00:00:38]} Bc7 {[%clk
00:03:25]} {[%emt 00:02:42]} 36. Kd3 {[%clk 00:50:22]} {[%emt 00:00:23]} Bd5
{[%clk 00:02:34]} {[%emt 00:01:21]} 37. Bxd5+ {[%clk 00:47:26]} {[%emt
00:03:26]} Kxd5 {[%clk 00:02:58]} {[%emt 00:00:06]} 38. h3 {[%clk 00:44:52]}
{[%emt 00:03:04]} Bd6 {[%clk 00:02:23]} {[%emt 00:01:05]} 39. Kc3 {[%clk
00:45:12]} {[%emt 00:00:10]} Bf8 {[%clk 00:02:10]} {[%emt 00:00:43]} 40. Kd3
{[%clk 00:45:33]} {[%emt 00:00:08]} Bg7 {[%clk 00:01:24]} {[%emt 00:01:17]} 41.
Be3 {[%clk 00:45:44]} {[%emt 00:00:19]} Bf8 {[%clk 00:27:22]} {[%emt 00:04:33]}
42. Bd2 {[%clk 01:15:40]} {[%emt 00:00:33]} Be7 {[%clk 00:22:15]} {[%emt
00:05:37]} 43. Bc3 {[%clk 01:12:48]} {[%emt 00:03:22]} Bd6 {[%clk 00:22:37]}
{[%emt 00:00:08]} 44. Bd2 {[%clk 01:13:10]} {[%emt 00:00:08]} h5 {[%clk
00:19:48]} {[%emt 00:03:18]} 45. Kc3 {[%clk 01:02:16]} {[%emt 00:11:25]} Ke6
{[%clk 00:19:11]} {[%emt 00:01:07]} 46. Kd4 {[%clk 01:02:41]} {[%emt 00:00:05]}
Kf5 {[%clk 00:19:27]} {[%emt 00:00:13]} 47. Kd5 {[%clk 01:03:07]} {[%emt
00:00:04]} Bxf4 {[%clk 00:19:54]} {[%emt 00:00:04]} 48. Be1 {[%clk 01:03:21]}
{[%emt 00:00:16]} Be3 {[%clk 00:13:51]} {[%emt 00:06:33]} 49. Bg3 {[%clk
01:03:46]} {[%emt 00:00:04]} Kg5 {[%clk 00:13:24]} {[%emt 00:00:58]} 50. Ke6
{[%clk 00:49:21]} {[%emt 00:14:55]} Bd2 {[%clk 00:10:53]} {[%emt 00:03:00]} 51.
Bd6 {[%clk 00:49:49]} {[%emt 00:00:03]} Kh4 {[%clk 00:09:20]} {[%emt 00:02:04]}
52. Kf6 {[%clk 00:50:18]} Kxh3 {[%clk 00:09:06]} {[%emt 00:00:44]} 53. Kxg6
{[%clk 00:50:46]} Kg2 {[%clk 00:09:30]} {[%emt 00:00:06]} 54. f4 {[%clk
00:50:36]} {[%emt 00:00:40]} h4 {[%clk 00:04:55]} {[%emt 00:05:05]} 55. f5
{[%clk 00:51:02]} {[%emt 00:00:04]} h3 {[%clk 00:03:46]} {[%emt 00:01:39]} 56.
f6 {[%clk 00:51:31]} {[%emt 00:00:02]} h2 {[%clk 00:03:23]} {[%emt 00:00:52]}
57. f7 {[%clk 00:51:58]} {[%emt 00:00:03]} h1=Q {[%clk 00:03:00]} {[%emt
00:00:53]} 58. f8=Q {[%emt 00:01:22]} Qh4 {[%clk 00:02:12]} 59. Kf5 {[%clk
00:27:27]} {[%emt 00:25:26]} Kf3 {[%clk 00:01:51]} {[%emt 00:00:52]} 60. Ke6+
{[%clk 00:23:30]} {[%emt 00:04:27]} Ke4 {[%clk 00:02:15]} {[%emt 00:00:06]} 61.
Qf5+ {[%clk 00:23:03]} {[%emt 00:00:57]} Ke3 {[%clk 00:01:57]} {[%emt
00:00:47]} 62. Qxb5 {[%clk 00:16:46]} {[%emt 00:06:48]} Qe4+ {[%clk 00:02:23]}
{[%emt 00:00:03]} 63. Kd7 {[%clk 00:15:04]} {[%emt 00:02:15]} Qc6+ {[%clk
00:02:51]} {[%emt 00:00:03]} 64. Qxc6 {[%clk 00:15:25]} {[%emt 00:00:08]} bxc6
{[%clk 00:03:20]} {[%emt 00:00:02]} 65. Kxc6 {[%clk 00:15:45]} {[%emt
00:00:10]} Bxb4 {[%clk 00:03:48]} {[%emt 00:00:02]} 66. Bxb4 {[%clk 00:15:41]}
{[%emt 00:00:03]} 1/2-1/2

[Event "NJSK 2022 Jeugd A"]
[Site "Almelo, Netherlands"]
[Date "2022.05.05"]
[Round "5.2"]
[White "Van Foreest, Machteld"]
[Black "Van Kuijk, Vadim"]
[Result "1-0"]
[TimeControl "90min/40moves + 30min + 30sec/move"]
[WhiteElo "2287"]
[BlackElo "1898"]

1. e4 {[%clk 01:30:57]} {[%emt 00:00:02]} c6 {[%clk 01:30:27]} {[%emt
00:00:33]} 2. d4 {[%clk 01:31:21]} {[%emt 00:00:07]} d5 {[%clk 01:30:42]}
{[%emt 00:00:14]} 3. e5 {[%clk 01:31:44]} {[%emt 00:00:08]} Bf5 {[%clk
01:31:07]} {[%emt 00:00:04]} 4. h4 {[%clk 01:32:04]} {[%emt 00:00:11]} h5
{[%clk 01:31:32]} {[%emt 00:00:04]} 5. Bd3 {[%clk 01:32:29]} {[%emt 00:00:06]}
Bxd3 {[%clk 01:31:57]} {[%emt 00:00:05]} 6. Qxd3 {[%clk 01:32:51]} {[%emt
00:00:08]} Qa5+ {[%clk 01:32:20]} {[%emt 00:00:06]} 7. Nd2 {[%clk 01:26:29]}
{[%emt 00:06:53]} e6 {[%clk 01:32:15]} {[%emt 00:00:34]} 8. Ngf3 {[%clk
01:25:24]} {[%emt 00:01:35]} Nh6 {[%clk 01:32:25]} {[%emt 00:00:20]} 9. O-O
{[%clk 01:18:02]} {[%emt 00:07:52]} Nf5 {[%clk 01:31:09]} {[%emt 00:01:46]} 10.
c4 {[%clk 01:16:31]} {[%emt 00:02:02]} Be7 {[%clk 01:28:30]} {[%emt 00:03:07]}
11. g3 {[%clk 01:13:06]} {[%emt 00:03:56]} Qa6 {[%clk 01:18:17]} {[%emt
00:10:43]} 12. b3 {[%clk 01:12:00]} {[%emt 00:01:36]} c5 {[%clk 01:16:33]}
{[%emt 00:02:14]} 13. Qc2 {[%clk 01:06:28]} {[%emt 00:06:03]} dxc4 {[%clk
01:02:07]} {[%emt 00:14:55]} 14. d5 {[%clk 00:57:25]} {[%emt 00:09:34]} c3
{[%clk 00:37:15]} {[%emt 00:25:22]} 15. Nc4 {[%clk 00:41:28]} {[%emt 00:16:26]}
Nd4 {[%clk 00:36:29]} {[%emt 00:01:16]} 16. Nxd4 {[%clk 00:41:07]} {[%emt
00:00:51]} cxd4 {[%clk 00:36:42]} {[%emt 00:00:17]} 17. d6 {[%clk 00:40:52]}
{[%emt 00:00:47]} Bd8 {[%clk 00:37:00]} {[%emt 00:00:11]} 18. Qe4 {[%clk
00:28:11]} {[%emt 00:13:11]} Nc6 {[%clk 00:36:13]} {[%emt 00:01:16]} 19. d7+
{[%clk 00:20:36]} {[%emt 00:08:06]} Kxd7 {[%clk 00:26:40]} {[%emt 00:10:03]} 20.
Rd1 {[%clk 00:20:26]} {[%emt 00:00:40]} Be7 {[%clk 00:19:50]} {[%emt 00:07:19]}
21. Be3 {[%clk 00:19:30]} {[%emt 00:01:26]} Bc5 {[%clk 00:14:44]} {[%emt
00:05:36]} 22. Qf3 {[%clk 00:08:14]} {[%emt 00:11:46]} Ke8 {[%clk 00:11:36]}
{[%emt 00:03:39]} 23. Bxd4 {[%clk 00:06:10]} {[%emt 00:02:34]} c2 {[%clk
00:10:27]} {[%emt 00:01:38]} 24. Bxc5 {[%clk 00:06:13]} {[%emt 00:00:28]}
cxd1=Q+ {[%clk 00:07:53]} {[%emt 00:03:03]} 25. Rxd1 {[%clk 00:06:29]} {[%emt
00:00:15]} Nxe5 {[%clk 00:03:13]} {[%emt 00:05:09]} 26. Nxe5 {[%clk 00:06:43]}
{[%emt 00:00:16]} f6 {[%clk 00:03:32]} {[%emt 00:00:11]} 27. Qe4 {[%clk
00:06:38]} {[%emt 00:00:35]} Rh6 {[%clk 00:03:26]} {[%emt 00:00:36]} 28. Qd4
{[%clk 00:06:57]} {[%emt 00:00:11]} Qb5 {[%clk 00:03:14]} {[%emt 00:00:42]} 29.
Qd6 {[%clk 00:07:23]} {[%emt 00:00:05]} fxe5 {[%clk 00:03:12]} {[%emt
00:00:32]} 30. Qe7# {[%clk 00:07:48]} {[%emt 00:00:05]} 1-0